fUSD/lending_fUSD_20250806
["ID","MTS","AMOUNT","RATE_DAILY","PERIOD"]
[377561269,1754442678572,-1555.03,0.00036164,14]
[377561270,1754442678582,-2264.12,0.00036164,14]
[377561271,1754442678591,-400.0,0.00036164,14]
[377561272,1754442678600,-2031.94,0.00036164,14]
[377561273,1754442678610,-400.0,0.00036164,14]
[377561274,1754442678620,-760.26,0.00036164,14]
[377561275,1754442678629,-400.0,0.00036164,14]
[377561276,1754442678639,-400.0,0.00036164,14]
[377561277,1754442678648,-400.0,0.00036164,14]
[377561278,1754442678658,-930.41,0.00036164,14]
[377561279,1754442678667,-786.19,0.00036164,14]
[377561280,1754442678676,-406.98,0.00036164,14]
[377561281,1754442678686,-524.56,0.00036164,14]
[377561282,1754442678696,-531.32,0.00036164,14]
[377561283,1754442678706,-589.63,0.00036164,14]
[377561284,1754442678715,-1026.06,0.00036164,14]
[377561285,1754442678725,-400.0,0.00036164,14]
[377561286,1754442678735,-1144.28,0.00036164,14]
[377561287,1754442678745,-400.0,0.00036164,14]
[377561288,1754442678754,-400.0,0.00036164,14]
[377561289,1754442678764,-400.0,0.00036164,14]
[377561290,1754442678773,-400.0,0.00036164,14]
[377561291,1754442678783,-2523.61,0.00036164,14]
[377561292,1754442678793,-400.0,0.00036164,14]
[377561293,1754442678803,-400.0,0.00036164,14]
[377561294,1754442678812,-688.8,0.00036164,14]
[377561295,1754442678822,-2483.16,0.00036164,14]
[377561296,1754442678832,-400.0,0.00036164,14]
[377561297,1754442678841,-1380.5,0.00036164,14]
[377561298,1754442678851,-400.0,0.00036164,14]
[377561299,1754442678861,-400.0,0.00036164,14]
[377561300,1754442678870,-1463.79,0.00036164,14]
[377561301,1754442678880,-489.01,0.00036164,14]
[377561302,1754442678890,-400.0,0.00036164,14]
[377561303,1754442678899,-2205.35,0.00036164,14]
[377561304,1754442678909,-400.0,0.00036164,14]
[377561305,1754442678921,-2207.6,0.00036164,14]
[377561306,1754442678931,-400.0,0.00036164,14]
[377561307,1754442678942,-491.72,0.00036164,14]
[377561308,1754442678951,-2085.19,0.00036164,14]
[377561309,1754442678964,-400.0,0.00036164,14]
[377561310,1754442678975,-414.28,0.00036164,14]
[377561311,1754442678986,-400.0,0.00036164,14]
[377561312,1754442678995,-400.0,0.00036164,14]
[377561313,1754442679006,-1972.25,0.00036164,14]
[377561314,1754442679015,-1215.67,0.00036164,14]
[377561315,1754442679025,-400.0,0.00036164,14]
[377561316,1754442679035,-794.93,0.00036164,14]
[377561317,1754442679044,-400.0,0.00036164,14]
[377561318,1754442679054,-422.44,0.00036164,14]
[377561319,1754442679064,-1015.96,0.00036164,14]
[377561320,1754442679073,-1312.75,0.00036164,14]
[377561321,1754442679085,-400.0,0.00036164,14]
[377561322,1754442679095,-3346.64,0.00036164,14]
[377561323,1754442679104,-400.0,0.00036164,14]
[377561324,1754442679114,-777.29,0.00036164,14]
[377561325,1754442679124,-1172.709491,0.00036164,14]
[377561326,1754442679133,-400.0,0.00036164,14]
[377561327,1754442679143,-400.0,0.00036164,14]
[377561328,1754442679152,-400.0,0.00036164,14]
[377561329,1754442679162,-932.98,0.00036164,14]
[377561330,1754442679173,-2888.34,0.00036164,14]
[377561331,1754442679182,-1292.66,0.00036164,14]
[377561332,1754442679192,-934.564391,0.00036164,14]
[377561333,1754442679203,-1868.41,0.00036164,14]
[377561334,1754442679213,-2405.61,0.00036164,14]
[377561335,1754442679225,-400.0,0.00036164,14]
[377561336,1754442679234,-1269.3,0.00036164,14]
[377561337,1754442679243,-709.55,0.00036164,14]
[377561338,1754442679253,-1290.39,0.00036164,14]
[377561339,1754442679263,-1328.676612,0.00036164,14]
[377561340,1754442679272,-400.0,0.00036164,14]
[377561341,1754442679282,-400.0,0.00036164,14]
[377561342,1754442679293,-400.0,0.00036164,14]
[377561343,1754442679302,-400.0,0.00036164,14]
[377561344,1754442679312,-400.0,0.00036164,14]
[377561345,1754442679322,-400.0,0.00036164,14]
[377561346,1754442679332,-437.13,0.00036164,14]
[377561347,1754442679342,-400.0,0.00036164,14]
[377561348,1754442679352,-935.04,0.00036164,14]
[377561349,1754442679362,-400.0,0.00036164,14]
[377561350,1754442679373,-1708.33,0.00036164,14]
[377561351,1754442679383,-400.0,0.00036164,14]
[377561352,1754442679393,-1761.05,0.00036164,14]
[377561353,1754442679404,-1704.71,0.00036164,14]
[377561354,1754442679414,-2290.75,0.00036164,14]
[377561355,1754442679427,-1762.0,0.00036164,14]
[377561356,1754442679437,-672.68,0.00036164,14]
[377561357,1754442679447,-527.32,0.00036164,14]
[377561358,1754442679456,-183.443369,0.00036164,14]
[377561359,1754442679466,-994.04,0.00036164,14]
[377561360,1754442679476,-400.0,0.00036164,14]
[377561361,1754442679487,-400.0,0.00036164,14]
[377561362,1754442679497,-400.0,0.00036164,14]
[377561363,1754442679507,-400.0,0.00036164,14]
[377561364,1754442679517,-400.0,0.00036164,14]
[377561365,1754442679527,-2469.75,0.00036164,14]
[377561366,1754442679537,-400.0,0.00036164,14]
[377561367,1754442679546,-150.613933,0.00036164,14]
[377561368,1754442679555,-400.0,0.00036164,14]
[377561369,1754442679566,-400.0,0.00036164,14]
[377561370,1754442679576,-400.0,0.00036164,14]
[377561371,1754442679586,-400.0,0.00036164,14]
[377561372,1754442679596,-2205.99,0.00036164,14]
[377561373,1754442679606,-400.0,0.00036164,14]
[377561374,1754442679616,-400.0,0.00036164,14]
[377561375,1754442679626,-779.79,0.00036164,14]
[377561376,1754442679635,-400.0,0.00036164,14]
[377561377,1754442679646,-2509.3,0.00036164,14]
[377561378,1754442679656,-1057.03,0.00036164,14]
[377561379,1754442679670,-400.0,0.00036164,14]
[377561380,1754442679680,-1461.09,0.00036164,14]
[377561381,1754442679691,-2247.66,0.00036164,14]
[377561382,1754442679700,-400.0,0.00036164,14]
[377561383,1754442679710,-1264.35,0.00036164,14]
[377561384,1754442679719,-400.0,0.00036164,14]
[377561385,1754442679728,-579.3,0.00036164,14]
[377561386,1754442679738,-430.86,0.00036164,14]
[377561387,1754442679747,-2543.8,0.00036164,14]
[377561388,1754442679756,-927.28,0.00036164,14]
[377561389,1754442679766,-2035.35,0.00036164,14]
[377561390,1754442679775,-400.0,0.00036164,14]
[377561391,1754442679784,-1617.19,0.00036164,14]
[377561392,1754442679794,-400.0,0.00036164,14]
[377561393,1754442679803,-400.0,0.00036164,14]
[377561394,1754442679813,-2035.44,0.00036164,14]
[377561395,1754442679822,-404.01190646,0.00036164,14]
[377561396,1754442679831,-400.0,0.00036164,14]
[377561397,1754442679841,-742.22,0.00036164,14]
[377561398,1754442679850,-1576.22,0.00036164,14]
[377561399,1754442679860,-1564.14,0.00036164,14]
[377561400,1754442679869,-400.0,0.00036164,14]
[377561401,1754442679878,-1123.31,0.00036164,14]
[377561402,1754442679888,-423.59,0.00036164,14]
[377561403,1754442679897,-678.6,0.00036164,14]
[377561404,1754442679907,-1765.72,0.00036164,14]
[377561405,1754442679917,-1488.56,0.00036164,14]
[377561406,1754442679927,-1011.21,0.00036164,14]
[377561407,1754442679937,-1388.38,0.00036164,14]
[377561408,1754442679947,-523.37,0.00036164,14]
[377561409,1754442679956,-400.0,0.00036164,14]
[377561410,1754442679966,-400.0,0.00036164,14]
[377561411,1754442679975,-409.96,0.00036164,14]
[377561412,1754442679985,-1713.82,0.00036164,14]
[377561413,1754442679994,-3679.84,0.00036164,14]
[377561414,1754442680003,-1711.85,0.00036164,14]
[377561415,1754442680013,-1839.78,0.00036164,14]
[377561416,1754442680022,-2131.4,0.00036164,14]
[377561417,1754442680033,-790.57,0.00036164,14]
[377561418,1754442680051,-1776.87,0.00036164,14]
[377561419,1754442680061,-400.0,0.00036164,14]
[377561420,1754442680070,-1649.7,0.00036164,14]
[377561421,1754442680080,-1115.45,0.00036164,14]
[377561422,1754442680094,-400.0,0.00036164,14]
[377561423,1754442680111,-705.6,0.00036164,14]
[377561424,1754442680121,-963.25,0.00036164,14]
[377561425,1754442680130,-400.0,0.00036164,14]
[377561426,1754442680476,-2393.93,0.00036164,14]
[377561427,1754442680507,-496.79,0.00036164,14]
[377561428,1754442680517,-724.03,0.00036164,14]
[377561429,1754442680527,-400.0,0.00036164,14]
[377561430,1754442680537,-2090.88,0.00036164,14]
[377561431,1754442680547,-497.84,0.00036164,14]
[377561432,1754442680557,-400.0,0.00036164,14]
[377561433,1754442680566,-400.0,0.00036164,14]
[377561434,1754442680576,-1967.34,0.00036164,14]
[377561435,1754442680585,-797.29,0.00036164,14]
[377561436,1754442680595,-260.56,0.00036164,14]
[377561437,1754442680605,-400.0,0.00036164,14]
[377561438,1754442680614,-400.0,0.00036164,14]
[377561439,1754442680624,-400.0,0.00036164,14]
[377561440,1754442680633,-534.96,0.00036164,14]
[377561441,1754442680643,-400.0,0.00036164,14]
[377561442,1754442680653,-602.25,0.00036164,14]
[377561443,1754442680663,-2237.67,0.00036164,14]
[377561444,1754442680674,-400.0,0.00036164,14]
[377561445,1754442680684,-1943.05,0.00036164,14]
[377561446,1754442680693,-400.0,0.00036164,14]
[377561447,1754442680703,-1777.23,0.00036164,14]
[377561448,1754442680713,-525.4,0.00036164,14]
[377561449,1754442680722,-400.0,0.00036164,14]
[377561450,1754442680732,-400.0,0.00036164,14]
[377561451,1754442680741,-400.0,0.00036164,14]
[377561452,1754442680751,-400.0,0.00036164,14]
[377561453,1754442680760,-400.0,0.00036164,14]
[377561454,1754442680769,-1704.16,0.00036164,14]
[377561455,1754442680779,-755.14,0.00036164,14]
[377561456,1754442680788,-458.11,0.00036164,14]
[377561457,1754442680797,-1361.3,0.00036164,14]
[377561458,1754442680807,-1657.6,0.00036164,14]
[377561459,1754442680817,-400.0,0.00036164,14]
[377561460,1754442680826,-400.0,0.00036164,14]
[377561461,1754442680835,-464.59,0.00036164,14]
[377561462,1754442680845,-400.0,0.00036164,14]
[377561463,1754442680854,-1359.03,0.00036164,14]
[377561464,1754442680863,-928.51,0.00036164,14]
[377561465,1754442680873,-365.03337258,0.00036164,14]
[377561466,1754442680882,-447.16,0.00036164,14]
[377561467,1754442680891,-935.48,0.00036164,14]
[377561468,1754442680901,-400.0,0.00036164,14]
[377561469,1754442680910,-400.0,0.00036164,14]
[377561470,1754442680921,-1737.65,0.00036164,14]
[377561471,1754442680931,-475.44,0.00036164,14]
[377561472,1754442680940,-964.89,0.00036164,14]
[377561473,1754442680950,-2309.93,0.00036164,14]
[377561474,1754442680960,-400.0,0.00036164,14]
[377561475,1754442680969,-2063.67,0.00036164,14]
[377561476,1754442680979,-1013.66,0.00036164,14]
[377561477,1754442680989,-1126.47,0.00036164,14]
[377561478,1754442680998,-984.53,0.00036164,14]
[377561479,1754442681008,-1638.91,0.00036164,14]
[377561480,1754442681017,-400.0,0.00036164,14]
[377561481,1754442681027,-1466.99,0.00036164,14]
[377561482,1754442681037,-1286.0,0.00036164,14]
[377561483,1754442681047,-400.0,0.00036164,14]
[377561484,1754442681056,-857.1,0.00036164,14]
[377561485,1754442681066,-1077.2,0.00036164,14]
[377561486,1754442681076,-962.77,0.00036164,14]
[377561487,1754442681085,-400.0,0.00036164,14]
[377561488,1754442681095,-400.0,0.00036164,14]
[377561489,1754442681104,-1979.59,0.00036164,14]
[377561490,1754442681114,-1044.87,0.00036164,14]
[377561491,1754442681123,-939.42,0.00036164,14]
[377561492,1754442681133,-1728.26,0.00036164,14]
[377561493,1754442681142,-400.0,0.00036164,14]
[377561494,1754442681152,-832.44,0.00036164,14]
[377561495,1754442681161,-1020.28,0.00036164,14]
[377561496,1754442681171,-1048.15,0.00036164,14]
[377561497,1754442681181,-1132.04,0.00036164,14]
[377561498,1754442681191,-400.0,0.00036164,14]
[377561499,1754442681201,-400.0,0.00036164,14]
[377561500,1754442681210,-668.93,0.00036164,14]
[377561501,1754442681220,-457.75,0.00036164,14]
[377561502,1754442681230,-1666.74,0.00036164,14]
[377561503,1754442681239,-2214.94,0.00036164,14]
[377561504,1754442681249,-400.0,0.00036164,14]
[377561505,1754442681258,-2316.2,0.00036164,14]
[377561506,1754442681270,-923.76,0.00036164,14]
[377561507,1754442681280,-728.39,0.00036164,14]
[377561508,1754442681290,-400.0,0.00036164,14]
[377561509,1754442681309,-1498.11,0.00036164,14]
[377561510,1754442681319,-1040.17,0.00036164,14]
[377561511,1754442681328,-400.0,0.00036164,14]
[377561512,1754442681338,-400.0,0.00036164,14]
[377561513,1754442681347,-2864.39,0.00036164,14]
[377561514,1754442681357,-400.0,0.00036164,14]
[377561515,1754442681366,-1180.49,0.00036164,14]
[377561516,1754442681376,-400.0,0.00036164,14]
[377561517,1754442681385,-1311.83,0.00036164,14]
[377561518,1754442681395,-1834.0,0.00036164,14]
[377561519,1754442681405,-400.0,0.00036164,14]
[377561520,1754442681414,-1955.23,0.00036164,14]
[377561521,1754442681425,-538.12,0.00036164,14]
[377561522,1754442681434,-400.0,0.00036164,14]
[377561523,1754442681443,-1244.43,0.00036164,14]
[377561524,1754442681452,-400.0,0.00036164,14]
[377561525,1754442681461,-1662.24,0.00036164,14]
[377561526,1754442681471,-657.65,0.00036164,14]
[377561527,1754442681481,-815.87,0.00036164,14]
[377561528,1754442681491,-953.1,0.00036164,14]
[377561529,1754442681501,-400.0,0.00036164,14]
[377561530,1754442681511,-563.55,0.00036164,14]
[377561531,1754442681520,-400.0,0.00036164,14]
[377561532,1754442681530,-400.0,0.00036164,14]
[377561533,1754442681539,-400.0,0.00036164,14]
[377561534,1754442681549,-1102.55,0.00036164,14]
[377561535,1754442681559,-914.6,0.00036164,14]
[377561536,1754442681568,-400.0,0.00036164,14]
[377561537,1754442681578,-1700.2,0.00036164,14]
[377561538,1754442681588,-400.0,0.00036164,14]
[377561539,1754442681597,-525.87,0.00036164,14]
[377561540,1754442681607,-400.0,0.00036164,14]
[377561541,1754442681616,-1677.48,0.00036164,14]
[377561542,1754442681625,-615.99,0.00036164,14]
[377561543,1754442681635,-1122.22,0.00036164,14]
[377561544,1754442681644,-400.0,0.00036164,14]
[377561545,1754442681653,-1673.07,0.00036164,14]
[377561546,1754442681663,-1339.53,0.00036164,14]
[377561547,1754442681672,-691.75,0.00036164,14]
[377561548,1754442681682,-3039.76,0.00036164,14]
[377561549,1754442681691,-400.0,0.00036164,14]
[377561550,1754442681700,-1742.18,0.00036164,14]
[377561551,1754442681710,-400.0,0.00036164,14]
[377561552,1754442681719,-3124.83,0.00036164,14]
[377561553,1754442681732,-2935.07,0.00036164,14]
[377561554,1754442681741,-400.0,0.00036164,14]
[377561555,1754442681752,-347.2762673,0.00036164,14]
[377561556,1754442681761,-400.0,0.00036164,14]
[377561557,1754442681770,-400.0,0.00036164,14]
[377561558,1754442681779,-1838.67,0.00036164,14]
[377561559,1754442681788,-609.9,0.00036164,14]
[377561560,1754442681798,-400.0,0.00036164,14]
[377561561,1754442681807,-400.0,0.00036164,14]
[377561562,1754442681817,-991.95,0.00036164,14]
[377561563,1754442681826,-1655.86,0.00036164,14]
[377561564,1754442681835,-3327.96,0.00036164,14]
[377561565,1754442681844,-400.0,0.00036164,14]
[377561566,1754442681854,-1352.76,0.00036164,14]
[377561567,1754442681863,-2954.23,0.00036164,14]
[377561568,1754442681873,-566.14,0.00036164,14]
[377561569,1754442681883,-686.21,0.00036164,14]
[377561570,1754442681892,-400.0,0.00036164,14]
[377561571,1754442681902,-438.37,0.00036164,14]
[377561572,1754442681911,-1748.91,0.00036164,14]
[377561573,1754442681921,-2547.69,0.00036164,14]
[377561574,1754442681930,-400.0,0.00036164,14]
[377561575,1754442681940,-3490.04,0.00036164,14]
[377561576,1754442681950,-1448.31,0.00036164,14]
[377561577,1754442681959,-400.0,0.00036164,14]
[377561578,1754442681968,-400.0,0.00036164,14]
[377561579,1754442681978,-400.0,0.00036164,14]
[377561580,1754442681987,-400.0,0.00036164,14]
[377561581,1754442681996,-1802.79,0.00036164,14]
[377561582,1754442682006,-1267.64,0.00036164,14]
[377561583,1754442682015,-784.29,0.00036164,14]
[377561584,1754442682025,-400.0,0.00036164,14]
[377561585,1754442682034,-400.0,0.00036164,14]
[377561586,1754442682043,-1837.22,0.00036164,14]
[377561587,1754442682053,-400.0,0.00036164,14]
[377561588,1754442682062,-400.0,0.00036164,14]
[377561589,1754442682072,-634.12,0.00036164,14]
[377561590,1754442682081,-4030.7,0.00036164,14]
[377561591,1754442682091,-3271.39,0.00036164,14]
[377561592,1754442682101,-1431.01,0.00036164,14]
[377561593,1754442682110,-1890.7,0.00036164,14]
[377561594,1754442682119,-423.14,0.00036164,14]
[377561595,1754442682129,-400.0,0.00036164,14]
[377561596,1754442682138,-518.39,0.00036164,14]
[377561597,1754442682148,-799.06,0.00036164,14]
[377561598,1754442682157,-1061.15,0.00036164,14]
[377561599,1754442682167,-2300.35,0.00036164,14]
[377561600,1754442682177,-400.0,0.00036164,14]
[377561601,1754442682187,-1973.9,0.00036164,14]
[377561602,1754442682196,-414.66,0.00036164,14]
[377561603,1754442682205,-649.25,0.00036164,14]
[377561604,1754442682215,-2403.69,0.00036164,14]
[377561605,1754442682228,-400.0,0.00036164,14]
[377561606,1754442682238,-400.0,0.00036164,14]
[377561607,1754442682247,-400.0,0.00036164,14]
[377561608,1754442682256,-1824.64,0.00036164,14]
[377561609,1754442682267,-1727.1,0.00036164,14]
[377561610,1754442682276,-1000.4,0.00036164,14]
[377561611,1754442682286,-1599.77,0.00036164,14]
[377561612,1754442682295,-400.0,0.00036164,14]
[377561613,1754442682306,-1861.93,0.00036164,14]
[377561614,1754442682315,-400.0,0.00036164,14]
[377561615,1754442682324,-1144.07,0.00036164,14]
[377561616,1754442682334,-1695.92,0.00036164,14]
[377561617,1754442682343,-4450.65,0.00036164,14]
[377561618,1754442682352,-400.0,0.00036164,14]
[377561619,1754442682362,-1706.8,0.00036164,14]
[377561620,1754442682371,-1430.5,0.00036164,14]
[377561621,1754442682380,-932.87,0.00036164,14]
[377561622,1754442682389,-779.66,0.00036164,14]
[377561623,1754442682400,-400.0,0.00036164,14]
[377561624,1754442682418,-951.39,0.00036164,14]
[377561625,1754442682427,-421.9,0.00036164,14]
[377561626,1754442682437,-2337.94,0.00036164,14]
[377561627,1754442682446,-400.0,0.00036164,14]
[377561628,1754442682455,-237.03897118,0.00036164,14]
[377561629,1754442682465,-400.0,0.00036164,14]
[377561630,1754442682474,-589.79,0.00036164,14]
[377561631,1754442682484,-2493.45,0.00036164,14]
[377561632,1754442682493,-1533.82,0.00036164,14]
[377561633,1754442682503,-400.0,0.00036164,14]
[377561634,1754442682512,-2218.99,0.00036164,14]
[377561635,1754442682521,-2089.35,0.00036164,14]
[377561636,1754442682530,-400.0,0.00036164,14]
[377561637,1754442682540,-841.47,0.00036164,14]
[377561638,1754442682549,-400.0,0.00036164,7]
[377561639,1754442682558,-868.89,0.00036164,14]
[377561640,1754442682568,-895.39,0.00036164,14]
[377561641,1754442682577,-3396.05,0.00036164,14]
[377561642,1754442682586,-236.43181306,0.00036164,14]
[377561643,1754442682596,-1716.54,0.00036164,14]
[377561644,1754442682606,-400.0,0.00036164,14]
[377561645,1754442682616,-400.0,0.00036164,14]
[377561646,1754442682626,-1340.56,0.00036164,14]
[377561647,1754442682636,-400.0,0.00036164,14]
[377561648,1754442682645,-400.0,0.00036164,14]
[377561649,1754442682654,-400.0,0.00036164,14]
[377561650,1754442682663,-1353.01,0.00036164,14]
[377561651,1754442682674,-1603.32,0.00036164,14]
[377561652,1754442682683,-2276.37,0.00036164,14]
[377561653,1754442682693,-2656.29,0.00036164,14]
[377561654,1754442682702,-400.0,0.00036164,14]
[377561655,1754442682711,-583.8,0.00036164,14]
[377561656,1754442682721,-1428.62,0.00036164,14]
[377561657,1754442682730,-772.55,0.00036164,14]
[377561658,1754442682739,-1629.04,0.00036164,14]
[377561659,1754442682749,-2751.15,0.00036164,14]
[377561660,1754442682759,-878.31,0.00036164,14]
[377561661,1754442682768,-400.0,0.00036164,14]
[377561662,1754442682777,-1325.14,0.00036164,14]
[377561663,1754442682787,-400.0,0.00036164,14]
[377561664,1754442682797,-1622.11,0.00036164,14]
[377561665,1754442682806,-444.96,0.00036164,14]
[377561666,1754442682917,-1723.73,0.00036164,14]
[377561667,1754442682927,-1723.73,0.00036164,14]
[377561668,1754442682936,-690.57,0.00036164,14]
[377561669,1754442682945,-5774.11,0.00036164,14]
[377561670,1754442682955,-1725.28,0.00036164,14]
[377561671,1754442682965,-2273.8,0.00036164,14]
[377561672,1754442682974,-400.0,0.00036164,14]
[377561673,1754442682983,-1180.48,0.00036164,14]
[377561674,1754442682993,-1303.85,0.00036164,14]
[377561675,1754442683002,-2418.19,0.00036164,14]
[377561676,1754442683011,-1418.71,0.00036164,14]
[377561677,1754442683020,-1589.73,0.00036164,14]
[377561678,1754442683030,-1483.39,0.00036164,14]
[377561679,1754442683039,-400.0,0.00036164,14]
[377561680,1754442683048,-455.48482965,0.00036164,14]
[377561681,1754442683057,-400.0,0.00036164,14]
[377561682,1754442683066,-821.53,0.00036164,14]
[377561683,1754442683075,-1287.81,0.00036164,14]
[377561684,1754442683085,-1703.45,0.00036164,14]
[377561685,1754442683094,-1498.57,0.00036164,14]
[377561686,1754442683103,-1983.78,0.00036164,14]
[377561687,1754442683112,-1679.65,0.00036164,14]
[377561688,1754442683121,-400.0,0.00036164,14]
[377561689,1754442683130,-3157.63,0.00036164,14]
[377561690,1754442683139,-1609.66,0.00036164,14]
[377561691,1754442683148,-687.98,0.00036164,14]
[377561692,1754442683157,-2415.95,0.00036164,14]
[377561693,1754442683166,-2307.34,0.00036164,14]
[377561694,1754442683175,-400.0,0.00036164,14]
[377561695,1754442683184,-2679.13,0.00036164,14]
[377561696,1754442683193,-3177.96,0.00036164,14]
[377561697,1754442683202,-400.0,0.00036164,14]
[377561698,1754442683211,-747.81,0.00036164,14]
[377561699,1754442683222,-1953.14,0.00036164,14]
[377561700,1754442683233,-400.0,0.00036164,14]
[377561701,1754442683243,-404.81,0.00036164,14]
[377561702,1754442683252,-428.72,0.00036164,14]
[377561703,1754442683261,-1927.57,0.00036164,14]
[377561704,1754442683271,-697.32,0.00036164,14]
[377561705,1754442683280,-400.0,0.00036164,14]
[377561706,1754442683289,-400.0,0.00036164,14]
[377561707,1754442683299,-555.16,0.00036164,14]
[377561708,1754442683308,-1949.72,0.00036164,14]
[377561709,1754442683317,-2417.38,0.00036164,14]
[377561710,1754442683326,-1541.25,0.00036164,14]
[377561711,1754442683336,-400.0,0.00036164,14]
[377561712,1754442683345,-2048.47,0.00036164,14]
[377561713,1754442683355,-2683.89,0.00036164,14]
[377561714,1754442683364,-551.19,0.00036164,14]
[377561715,1754442683373,-2641.67,0.00036164,14]
[377561716,1754442683383,-2392.06,0.00036164,14]
[377561717,1754442683392,-1796.75,0.00036164,14]
[377561718,1754442683401,-627.84,0.00036164,14]
[377561719,1754442683410,-1705.98,0.00036164,14]
[377561720,1754442683421,-400.0,0.00036164,14]
[377561721,1754442683430,-1037.19,0.00036164,14]
[377561722,1754442683440,-872.94,0.00036164,14]
[377561723,1754442683450,-527.27,0.00036164,14]
[377561724,1754442683459,-2665.06,0.00036164,14]
[377561725,1754442683468,-1314.63,0.00036164,14]
[377561726,1754442683478,-400.0,0.00036164,14]
[377561727,1754442683487,-1710.7,0.00036164,14]
[377561728,1754442683497,-427.48,0.00036164,14]
[377561729,1754442683507,-1376.11,0.00036164,14]
[377561730,1754442683517,-2454.52,0.00036164,14]
[377561731,1754442683527,-400.0,0.00036164,14]
[377561732,1754442683536,-765.61,0.00036164,14]
[377561733,1754442683545,-2952.63,0.00036164,14]
[377561734,1754442683555,-1470.65,0.00036164,14]
[377561735,1754442683564,-540.65,0.00036164,14]
[377561736,1754442683574,-2318.46,0.00036164,14]
[377561737,1754442683583,-400.0,0.00036164,14]
[377561738,1754442683593,-400.0,0.00036164,14]
[377561739,1754442683602,-1988.57,0.00036164,14]
[377561740,1754442683612,-400.0,0.00036164,14]
[377561741,1754442683622,-1460.27,0.00036164,14]
[377561742,1754442683631,-845.33,0.00036164,14]
[377561743,1754442683640,-400.0,0.00036164,14]
[377561744,1754442683649,-542.49,0.00036164,14]
[377561745,1754442683659,-2535.23,0.00036164,14]
[377561746,1754442683668,-438.71,0.00036164,14]
[377561747,1754442683677,-879.89,0.00036164,14]
[377561748,1754442683687,-831.42,0.00036164,14]
[377561749,1754442683696,-430.36,0.00036164,14]
[377561750,1754442683706,-400.0,0.00036164,14]
[377561751,1754442683715,-638.79,0.00036164,14]
[377561752,1754442683726,-411.62,0.00036164,14]
[377561753,1754442683736,-698.35,0.00036164,14]
[377561754,1754442683745,-1118.12,0.00036164,14]
[377561755,1754442683755,-1292.39,0.00036164,14]
[377561756,1754442683764,-1399.9,0.00036164,14]
[377561757,1754442683774,-1093.35,0.00036164,14]
[377561758,1754442683783,-151.0,0.00036164,7]
[377561759,1754442683793,-861.63,0.00036164,14]
[377561760,1754442683803,-832.43,0.00036164,14]
[377561761,1754442683812,-865.54,0.00036164,14]
[377561762,1754442683822,-1672.62,0.00036164,14]
[377561763,1754442683831,-1841.38,0.00036164,14]
[377561764,1754442683840,-766.86,0.00036164,14]
[377561765,1754442683849,-400.0,0.00036164,14]
[377561766,1754442683858,-400.0,0.00036164,14]
[377561767,1754442683867,-2517.68,0.00036164,14]
[377561768,1754442683877,-400.0,0.00036164,14]